[Event "Titled Tuesday Blitz March 15 Early 2022"]
[White "Dushyant Sharma"]
[Black "Migot, Tangi"]
[WhiteFideId "25065130"]
[BlackFideId "662445"]
[WhiteElo "2105"]
[BlackElo "2515"]
[Result "1-0"]
[Round "09"]
[TimeControl "180+1"]
[Date "2022.03.15"]
[WhiteClock "0:00:57"]
[BlackClock "0:00:21"]

1. e4 {[%clk 0:02:59]}  e5 {[%clk 0:03:00]} 2. Nf3 {[%clk 0:02:59]}  d6 {[%clk 0:03:00]} 3. d4 {[%clk 0:02:59]}  exd4 {[%clk 0:03:01]} 4. Nxd4 {[%clk 0:03:00]}  Nf6 {[%clk 0:03:02]} 5. Nc3 {[%clk 0:02:58]}  Be7 {[%clk 0:03:02]} 6. f4 {[%clk 0:02:58]}  O-O {[%clk 0:03:00]} 7. Nf3 {[%clk 0:02:58]}  Re8 {[%clk 0:03:00]} 8. Bd3 {[%clk 0:02:59]}  c5 {[%clk 0:02:58]} 9. O-O {[%clk 0:03:00]}  Nc6 {[%clk 0:02:58]} 10. Kh1 {[%clk 0:03:01]}  Bg4 {[%clk 0:02:56]} 11. Qe1 {[%clk 0:02:58]}  Bxf3 {[%clk 0:02:54]} 12. Rxf3 {[%clk 0:02:59]}  Nd4 {[%clk 0:02:55]} 13. Rh3 {[%clk 0:02:57]}  Bf8 {[%clk 0:02:55]} 14. Be3 {[%clk 0:02:42]}  Ng4 {[%clk 0:02:46]} 15. Bxd4 {[%clk 0:02:36]}  cxd4 {[%clk 0:02:46]} 16. Nd5 {[%clk 0:02:36]}  f5 {[%clk 0:02:38]} 17. Qg3 {[%clk 0:02:35]}  Rc8 {[%clk 0:02:08]} 18. exf5 {[%clk 0:02:32]}  Nf6 {[%clk 0:02:05]} 19. Qh4 {[%clk 0:02:13]}  h6 {[%clk 0:01:58]} 20. Nxf6+ {[%clk 0:02:10]}  Qxf6 {[%clk 0:01:58]} 21. Qxf6 {[%clk 0:02:08]}  gxf6 {[%clk 0:01:59]} 22. Rg3+ {[%clk 0:02:08]}  Kf7 {[%clk 0:01:59]} 23. b3 {[%clk 0:02:07]}  d5 {[%clk 0:01:59]} 24. h3 {[%clk 0:02:03]}  Bd6 {[%clk 0:01:58]} 25. Rf1 {[%clk 0:02:02]}  a6 {[%clk 0:01:49]} 26. a4 {[%clk 0:02:02]}  h5 {[%clk 0:01:47]} 27. Rg6 {[%clk 0:02:02]}  Bf8 {[%clk 0:01:31]} 28. g4 {[%clk 0:01:58]}  Re3 {[%clk 0:01:26]} 29. Kg2 {[%clk 0:01:56]}  h4 {[%clk 0:01:25]} 30. g5 {[%clk 0:01:55]}  Rg3+ {[%clk 0:01:10]} 31. Kh2 {[%clk 0:01:54]}  Be7 {[%clk 0:01:05]} 32. Rg1 {[%clk 0:01:32]}  Rf3 {[%clk 0:00:41]} 33. Rh6 {[%clk 0:01:23]}  Rxf4 {[%clk 0:00:38]} 34. g6+ {[%clk 0:01:18]}  Kg8 {[%clk 0:00:37]} 35. g7 {[%clk 0:01:16]}  Bd6 {[%clk 0:00:28]} 36. Kh1 {[%clk 0:01:03]}  Rf2 {[%clk 0:00:26]} 37. Rh8+ {[%clk 0:01:02]}  Kf7 {[%clk 0:00:26]} 38. g8=Q+ {[%clk 0:01:02]}  Rxg8 {[%clk 0:00:25]} 39. Rgxg8 {[%clk 0:01:03]}  Rh2+ {[%clk 0:00:23]} 40. Kg1 {[%clk 0:01:03]}  Rxh3 {[%clk 0:00:23]} 41. Rd8 {[%clk 0:00:59]}  Bf4 {[%clk 0:00:21]} 42. Rh7# {[%clk 0:00:57]} 1-0


[Site "https://www.chess.com"]

[Event "Titled Tuesday Blitz March 15 Early 2022"]
[White "Esipenko, Andrey"]
[Black "Dubov, Daniil"]
[WhiteFideId "24175439"]
[BlackFideId "24126055"]
[WhiteElo "2617"]
[BlackElo "2791"]
[Result "0-1"]
[Round "09"]
[TimeControl "180+1"]
[Date "2022.03.15"]
[WhiteClock "0:00:01"]
[BlackClock "0:00:02"]

1. e4 {[%clk 0:03:00]}  c5 {[%clk 0:02:59]} 2. Nf3 {[%clk 0:03:00]}  e6 {[%clk 0:03:00]} 3. d4 {[%clk 0:03:01]}  cxd4 {[%clk 0:03:00]} 4. Nxd4 {[%clk 0:03:01]}  a6 {[%clk 0:03:01]} 5. Bd3 {[%clk 0:03:00]}  Bc5 {[%clk 0:03:00]} 6. Nb3 {[%clk 0:03:00]}  Ba7 {[%clk 0:03:01]} 7. Bf4 {[%clk 0:02:57]}  d6 {[%clk 0:02:56]} 8. Qd2 {[%clk 0:02:56]}  Nc6 {[%clk 0:02:49]} 9. Nc3 {[%clk 0:02:53]}  e5 {[%clk 0:02:40]} 10. Bg5 {[%clk 0:02:45]}  Nge7 {[%clk 0:02:36]} 11. O-O-O {[%clk 0:02:30]}  h6 {[%clk 0:02:32]} 12. Be3 {[%clk 0:02:23]}  Bxe3 {[%clk 0:02:31]} 13. Qxe3 {[%clk 0:02:23]}  Be6 {[%clk 0:02:30]} 14. Kb1 {[%clk 0:02:21]}  O-O {[%clk 0:02:28]} 15. g3 {[%clk 0:02:15]}  a5 {[%clk 0:02:13]} 16. Bb5 {[%clk 0:02:14]}  Na7 {[%clk 0:02:09]} 17. Nc5 {[%clk 0:02:12]}  Bc8 {[%clk 0:01:45]} 18. N5a4 {[%clk 0:02:02]}  Be6 {[%clk 0:01:30]} 19. Nb6 {[%clk 0:01:56]}  Rb8 {[%clk 0:01:29]} 20. f4 {[%clk 0:01:51]}  Nec6 {[%clk 0:00:53]} 21. f5 {[%clk 0:01:17]}  Nd4 {[%clk 0:00:28]} 22. fxe6 {[%clk 0:01:11]}  Naxb5 {[%clk 0:00:23]} 23. Nxb5 {[%clk 0:00:14]}  Nxb5 {[%clk 0:00:22]} 24. Nd7 {[%clk 0:00:13]}  fxe6 {[%clk 0:00:17]} 25. Nxb8 {[%clk 0:00:14]}  Qxb8 {[%clk 0:00:17]} 26. c3 {[%clk 0:00:11]}  Qc7 {[%clk 0:00:17]} 27. Qd3 {[%clk 0:00:11]}  Qc6 {[%clk 0:00:13]} 28. a4 {[%clk 0:00:09]}  Nc7 {[%clk 0:00:12]} 29. Qxd6 {[%clk 0:00:09]}  Qxe4+ {[%clk 0:00:12]} 30. Qd3 {[%clk 0:00:08]}  Qxa4 {[%clk 0:00:12]} 31. Rhe1 {[%clk 0:00:08]}  Nd5 {[%clk 0:00:09]} 32. Qe4 {[%clk 0:00:06]}  Nxc3+ {[%clk 0:00:05]} 33. bxc3 {[%clk 0:00:06]}  Qb3+ {[%clk 0:00:06]} 34. Kc1 {[%clk 0:00:06]}  Qa3+ {[%clk 0:00:06]} 35. Kd2 {[%clk 0:00:04]}  Qb2+ {[%clk 0:00:06]} 36. Ke3 {[%clk 0:00:04]}  Qf2+ {[%clk 0:00:06]} 37. Kd3 {[%clk 0:00:04]}  Rd8+ {[%clk 0:00:06]} 38. Kc4 {[%clk 0:00:04]}  Qa2+ {[%clk 0:00:06]} 39. Kb5 {[%clk 0:00:04]}  Qb3+ {[%clk 0:00:05]} 40. Kc5 {[%clk 0:00:03]}  Qxc3+ {[%clk 0:00:04]} 41. Kb6 {[%clk 0:00:03]}  Qb3+ {[%clk 0:00:03]} 42. Ka7 {[%clk 0:00:01]}  Rxd1 {[%clk 0:00:03]} 43. Re3 {[%clk 0:00:01]}  Qb4 {[%clk 0:00:02]} 44. Qg6 {[%clk 0:00:01]}  Qc5+ {[%clk 0:00:02]} 0-1


[Site "https://www.chess.com"]

[Event "Titled Tuesday Blitz March 15 Early 2022"]
[White "Fiorito, Fabian"]
[Black "Martin Carmona, Gaston Manuel"]
[WhiteFideId "100200"]
[BlackFideId "22284567"]
[WhiteElo "2395"]
[BlackElo "2161"]
[Result "1-0"]
[Round "09"]
[TimeControl "180+1"]
[Date "2022.03.15"]
[WhiteClock "0:01:13"]
[BlackClock "0:01:33"]

1. d4 {[%clk 0:03:00]}  Nf6 {[%clk 0:02:59]} 2. Nc3 {[%clk 0:03:01]}  e6 {[%clk 0:02:58]} 3. Bf4 {[%clk 0:03:00]}  d5 {[%clk 0:02:57]} 4. Nb5 {[%clk 0:03:00]}  Na6 {[%clk 0:02:57]} 5. e3 {[%clk 0:02:59]}  c6 {[%clk 0:02:56]} 6. Nc3 {[%clk 0:02:59]}  Nb8 {[%clk 0:02:54]} 7. Nf3 {[%clk 0:02:59]}  Bd6 {[%clk 0:02:53]} 8. Ne5 {[%clk 0:02:59]}  O-O {[%clk 0:02:53]} 9. g4 {[%clk 0:03:00]}  c5 {[%clk 0:02:51]} 10. dxc5 {[%clk 0:02:58]}  Bxc5 {[%clk 0:02:49]} 11. Bd3 {[%clk 0:02:59]}  Nc6 {[%clk 0:02:48]} 12. g5 {[%clk 0:02:57]}  Nd7 {[%clk 0:02:29]} 13. Nxd7 {[%clk 0:02:04]}  Bxd7 {[%clk 0:02:27]} 14. Qh5 {[%clk 0:01:58]}  g6 {[%clk 0:02:27]} 15. Qh6 {[%clk 0:01:55]}  e5 {[%clk 0:02:28]} 16. Nxd5 {[%clk 0:01:54]}  Be7 {[%clk 0:02:14]} 17. Nxe7+ {[%clk 0:01:48]}  Qxe7 {[%clk 0:02:15]} 18. Bg3 {[%clk 0:01:47]}  Bg4 {[%clk 0:02:12]} 19. O-O {[%clk 0:01:31]}  Bh5 {[%clk 0:02:07]} 20. f4 {[%clk 0:01:17]}  e4 {[%clk 0:02:05]} 21. f5 {[%clk 0:01:16]}  exd3 {[%clk 0:01:32]} 22. f6 {[%clk 0:01:14]}  Qxe3+ {[%clk 0:01:33]} 23. Bf2 {[%clk 0:01:13]} 1-0


[Site "https://www.chess.com"]

[Event "Titled Tuesday Blitz March 15 Early 2022"]
[White "Gaehwiler, Gabriel"]
[Black "Atakhan, Abtin"]
[WhiteFideId "1314530"]
[BlackFideId "22502203"]
[WhiteElo "2383"]
[BlackElo "2119"]
[Result "1-0"]
[Round "09"]
[TimeControl "180+1"]
[Date "2022.03.15"]
[WhiteClock "0:00:12"]
[BlackClock "0:00:16"]

1. d4 {[%clk 0:02:59]}  d5 {[%clk 0:02:55]} 2. c4 {[%clk 0:02:59]}  c6 {[%clk 0:02:55]} 3. Nf3 {[%clk 0:02:59]}  Nf6 {[%clk 0:02:55]} 4. Nc3 {[%clk 0:03:00]}  a6 {[%clk 0:02:55]} 5. g3 {[%clk 0:02:58]}  e6 {[%clk 0:02:51]} 6. Bg2 {[%clk 0:02:58]}  b5 {[%clk 0:02:37]} 7. b3 {[%clk 0:02:57]}  Bb4 {[%clk 0:02:35]} 8. Bd2 {[%clk 0:02:57]}  O-O {[%clk 0:02:32]} 9. O-O {[%clk 0:02:56]}  bxc4 {[%clk 0:02:32]} 10. bxc4 {[%clk 0:02:56]}  a5 {[%clk 0:02:33]} 11. Na4 {[%clk 0:02:52]}  Nbd7 {[%clk 0:02:29]} 12. Qc2 {[%clk 0:02:45]}  Ba6 {[%clk 0:02:26]} 13. Nb2 {[%clk 0:02:32]}  Nb6 {[%clk 0:02:02]} 14. Bxb4 {[%clk 0:02:24]}  axb4 {[%clk 0:02:02]} 15. c5 {[%clk 0:02:24]}  Nc4 {[%clk 0:02:01]} 16. Nxc4 {[%clk 0:02:05]}  Bxc4 {[%clk 0:01:59]} 17. Ne5 {[%clk 0:02:05]}  Bb5 {[%clk 0:01:52]} 18. Rfb1 {[%clk 0:01:55]}  Ra4 {[%clk 0:01:52]} 19. Rb2 {[%clk 0:01:17]}  Nd7 {[%clk 0:01:25]} 20. Nf3 {[%clk 0:01:06]}  Qa5 {[%clk 0:01:17]} 21. Bf1 {[%clk 0:00:57]}  Ra8 {[%clk 0:01:06]} 22. e3 {[%clk 0:00:53]}  Bxf1 {[%clk 0:01:03]} 23. Kxf1 {[%clk 0:00:53]}  Qb5+ {[%clk 0:00:59]} 24. Kg1 {[%clk 0:00:44]}  Qc4 {[%clk 0:00:40]} 25. Nd2 {[%clk 0:00:30]}  Qc3 {[%clk 0:00:39]} 26. Nb3 {[%clk 0:00:21]}  Ra3 {[%clk 0:00:21]} 27. Rc1 {[%clk 0:00:14]}  Qxc2 {[%clk 0:00:17]} 28. Rcxc2 {[%clk 0:00:14]}  Nf6 {[%clk 0:00:18]} 29. f3 {[%clk 0:00:15]}  Nd7 {[%clk 0:00:16]} 30. Kf2 {[%clk 0:00:14]}  e5 {[%clk 0:00:16]} 31. Nc1 {[%clk 0:00:12]} 1-0


[Site "https://www.chess.com"]

[Event "Titled Tuesday Blitz March 15 Early 2022"]
[White "Hammer, Jon Ludvig"]
[Black "Shimanov, Aleksandr"]
[WhiteFideId "1503707"]
[BlackFideId "4198603"]
[WhiteElo "2607"]
[BlackElo "2636"]
[Result "1-0"]
[Round "09"]
[TimeControl "180+1"]
[Date "2022.03.15"]
[WhiteClock "0:00:28"]
[BlackClock "0:00:01"]

1. d4 {[%clk 0:03:00]}  Nf6 {[%clk 0:02:54]} 2. c4 {[%clk 0:03:00]}  c5 {[%clk 0:02:53]} 3. d5 {[%clk 0:02:59]}  b5 {[%clk 0:02:53]} 4. cxb5 {[%clk 0:03:00]}  a6 {[%clk 0:02:53]} 5. bxa6 {[%clk 0:03:00]}  g6 {[%clk 0:02:51]} 6. Nc3 {[%clk 0:02:59]}  Bg7 {[%clk 0:02:50]} 7. a7 {[%clk 0:02:53]}  Rxa7 {[%clk 0:02:46]} 8. e4 {[%clk 0:02:53]}  O-O {[%clk 0:02:46]} 9. e5 {[%clk 0:02:41]}  Ne8 {[%clk 0:02:41]} 10. Nf3 {[%clk 0:02:39]}  d6 {[%clk 0:02:22]} 11. exd6 {[%clk 0:02:39]}  Nxd6 {[%clk 0:02:18]} 12. Be2 {[%clk 0:02:40]}  Nd7 {[%clk 0:02:12]} 13. O-O {[%clk 0:02:39]}  Bb7 {[%clk 0:02:12]} 14. Re1 {[%clk 0:02:36]}  Ra8 {[%clk 0:01:55]} 15. Bg5 {[%clk 0:02:32]}  Nf6 {[%clk 0:01:55]} 16. Bf1 {[%clk 0:02:28]}  Re8 {[%clk 0:01:52]} 17. Qd2 {[%clk 0:02:19]}  Qb6 {[%clk 0:01:41]} 18. Ne5 {[%clk 0:02:12]}  Rad8 {[%clk 0:01:36]} 19. Rac1 {[%clk 0:02:02]}  Nf5 {[%clk 0:01:25]} 20. Bb5 {[%clk 0:01:38]}  Rf8 {[%clk 0:01:16]} 21. Bxf6 {[%clk 0:01:30]}  Qxf6 {[%clk 0:00:52]} 22. Nd7 {[%clk 0:01:28]}  Rxd7 {[%clk 0:00:46]} 23. Bxd7 {[%clk 0:01:29]}  Bh6 {[%clk 0:00:39]} 24. Qd1 {[%clk 0:01:19]}  Bxc1 {[%clk 0:00:22]} 25. Qxc1 {[%clk 0:01:17]}  Nd6 {[%clk 0:00:23]} 26. Qe3 {[%clk 0:01:12]}  Rd8 {[%clk 0:00:22]} 27. Bc6 {[%clk 0:01:10]}  c4 {[%clk 0:00:10]} 28. Qxe7 {[%clk 0:01:03]}  Qxe7 {[%clk 0:00:09]} 29. Rxe7 {[%clk 0:01:04]}  Bc8 {[%clk 0:00:09]} 30. Ra7 {[%clk 0:01:00]}  Bf5 {[%clk 0:00:09]} 31. f3 {[%clk 0:00:57]}  Bd3 {[%clk 0:00:09]} 32. Ra8 {[%clk 0:00:56]}  Rxa8 {[%clk 0:00:09]} 33. Bxa8 {[%clk 0:00:57]}  Kf8 {[%clk 0:00:09]} 34. Kf2 {[%clk 0:00:57]}  Ke7 {[%clk 0:00:10]} 35. Bc6 {[%clk 0:00:54]}  Kd8 {[%clk 0:00:09]} 36. Nb5 {[%clk 0:00:54]}  Nf5 {[%clk 0:00:08]} 37. g4 {[%clk 0:00:54]}  Ne7 {[%clk 0:00:08]} 38. Nc3 {[%clk 0:00:50]}  Kc7 {[%clk 0:00:07]} 39. Be8 {[%clk 0:00:48]}  f5 {[%clk 0:00:07]} 40. Ke3 {[%clk 0:00:47]}  fxg4 {[%clk 0:00:06]} 41. fxg4 {[%clk 0:00:48]}  Kd6 {[%clk 0:00:05]} 42. Kd4 {[%clk 0:00:48]}  Nc8 {[%clk 0:00:05]} 43. a4 {[%clk 0:00:41]}  Bf1 {[%clk 0:00:04]} 44. a5 {[%clk 0:00:39]}  Ke7 {[%clk 0:00:04]} 45. Bb5 {[%clk 0:00:37]}  Nd6 {[%clk 0:00:04]} 46. Kc5 {[%clk 0:00:35]}  Nb7+ {[%clk 0:00:03]} 47. Kb6 {[%clk 0:00:35]}  Nd6 {[%clk 0:00:04]} 48. a6 {[%clk 0:00:34]}  Bd3 {[%clk 0:00:03]} 49. Kc7 {[%clk 0:00:27]}  Nxb5+ {[%clk 0:00:01]} 50. Nxb5 {[%clk 0:00:27]}  c3 {[%clk 0:00:01]} 51. bxc3 {[%clk 0:00:27]}  Bxb5 {[%clk 0:00:01]} 52. a7 {[%clk 0:00:28]} 1-0


[Site "https://www.chess.com"]

[Event "Titled Tuesday Blitz March 15 Early 2022"]
[White "Hoffmann, Asa"]
[Black "Odegov, Artem"]
[WhiteFideId "2001470"]
[BlackFideId "34183644"]
[WhiteElo "2117"]
[BlackElo "2286"]
[Result "0-1"]
[Round "09"]
[TimeControl "180+1"]
[Date "2022.03.15"]
[WhiteClock "0:01:18"]
[BlackClock "0:01:42"]

1. d4 {[%clk 0:02:48]}  Nf6 {[%clk 0:02:59]} 2. Bg5 {[%clk 0:02:47]}  Ne4 {[%clk 0:02:59]} 3. Bf4 {[%clk 0:02:45]}  d5 {[%clk 0:02:59]} 4. f3 {[%clk 0:02:41]}  Nf6 {[%clk 0:02:59]} 5. e4 {[%clk 0:02:41]}  dxe4 {[%clk 0:03:00]} 6. Nc3 {[%clk 0:02:40]}  exf3 {[%clk 0:02:58]} 7. Nxf3 {[%clk 0:02:39]}  g6 {[%clk 0:02:58]} 8. Qd2 {[%clk 0:02:38]}  Bg7 {[%clk 0:02:59]} 9. O-O-O {[%clk 0:02:38]}  O-O {[%clk 0:02:59]} 10. Bh6 {[%clk 0:02:37]}  Bg4 {[%clk 0:02:59]} 11. Be2 {[%clk 0:02:36]}  Nbd7 {[%clk 0:02:54]} 12. h3 {[%clk 0:02:36]}  Bxf3 {[%clk 0:02:53]} 13. Bxf3 {[%clk 0:02:36]}  c6 {[%clk 0:02:54]} 14. h4 {[%clk 0:02:35]}  Nb6 {[%clk 0:02:20]} 15. h5 {[%clk 0:02:34]}  Nc4 {[%clk 0:02:20]} 16. Qg5 {[%clk 0:02:29]}  Qa5 {[%clk 0:02:14]} 17. Qf4 {[%clk 0:02:13]}  Qb4 {[%clk 0:02:06]} 18. Na4 {[%clk 0:01:41]}  Qxa4 {[%clk 0:01:56]} 19. Bxg7 {[%clk 0:01:41]}  Kxg7 {[%clk 0:01:56]} 20. hxg6 {[%clk 0:01:39]}  fxg6 {[%clk 0:01:57]} 21. Qh6+ {[%clk 0:01:27]}  Kg8 {[%clk 0:01:55]} 22. Be2 {[%clk 0:01:25]}  Qb4 {[%clk 0:01:51]} 23. Bxc4+ {[%clk 0:01:24]}  Qxc4 {[%clk 0:01:52]} 24. Rde1 {[%clk 0:01:24]}  Qf7 {[%clk 0:01:49]} 25. Re5 {[%clk 0:01:22]}  Rad8 {[%clk 0:01:45]} 26. Qh4 {[%clk 0:01:21]}  Rd5 {[%clk 0:01:42]} 27. Rhe1 {[%clk 0:01:20]}  Rxe5 {[%clk 0:01:42]} 28. dxe5 {[%clk 0:01:19]}  Nd5 {[%clk 0:01:42]} 29. e6 {[%clk 0:01:19]}  Qf4+ {[%clk 0:01:42]} 30. Qxf4 {[%clk 0:01:18]}  Rxf4 {[%clk 0:01:42]} 0-1


[Site "https://www.chess.com"]

[Event "Titled Tuesday Blitz March 15 Early 2022"]
[White "Istvanovszki, Martin"]
[Black "Perez Gormaz, Matias"]
[WhiteFideId "726958"]
[BlackFideId "3406342"]
[WhiteElo "2345"]
[BlackElo "2327"]
[Result "1-0"]
[Round "09"]
[TimeControl "180+1"]
[Date "2022.03.15"]
[WhiteClock "0:01:01"]
[BlackClock "0:00:03"]

1. e4 {[%clk 0:03:00]}  c5 {[%clk 0:03:00]} 2. Nc3 {[%clk 0:02:53]}  Nc6 {[%clk 0:03:00]} 3. Bb5 {[%clk 0:02:48]}  Nd4 {[%clk 0:03:00]} 4. Bc4 {[%clk 0:02:48]}  a6 {[%clk 0:02:59]} 5. a4 {[%clk 0:02:48]}  g6 {[%clk 0:02:57]} 6. Nf3 {[%clk 0:02:47]}  Bg7 {[%clk 0:02:57]} 7. Nxd4 {[%clk 0:02:47]}  cxd4 {[%clk 0:02:58]} 8. Qf3 {[%clk 0:02:48]}  e6 {[%clk 0:02:58]} 9. Ne2 {[%clk 0:02:47]}  Ne7 {[%clk 0:02:55]} 10. d3 {[%clk 0:02:46]}  Nc6 {[%clk 0:02:50]} 11. Bb3 {[%clk 0:02:37]}  O-O {[%clk 0:02:49]} 12. h4 {[%clk 0:02:31]}  h5 {[%clk 0:02:30]} 13. Bg5 {[%clk 0:02:25]}  Qa5+ {[%clk 0:02:25]} 14. Bd2 {[%clk 0:02:25]}  Qb6 {[%clk 0:02:21]} 15. a5 {[%clk 0:02:23]}  Qc7 {[%clk 0:02:19]} 16. Qg3 {[%clk 0:02:18]}  Qxg3 {[%clk 0:02:17]} 17. Nxg3 {[%clk 0:02:18]}  Ne5 {[%clk 0:02:06]} 18. Ne2 {[%clk 0:02:10]}  Nc6 {[%clk 0:01:58]} 19. f3 {[%clk 0:02:07]}  d6 {[%clk 0:01:54]} 20. Kf2 {[%clk 0:01:57]}  Bd7 {[%clk 0:01:51]} 21. g4 {[%clk 0:01:56]}  hxg4 {[%clk 0:01:30]} 22. fxg4 {[%clk 0:01:55]}  e5 {[%clk 0:01:18]} 23. Rag1 {[%clk 0:01:47]}  Be6 {[%clk 0:01:18]} 24. Ba4 {[%clk 0:01:29]}  f5 {[%clk 0:00:39]} 25. exf5 {[%clk 0:01:28]}  gxf5 {[%clk 0:00:39]} 26. g5 {[%clk 0:01:29]}  f4 {[%clk 0:00:39]} 27. h5 {[%clk 0:01:23]}  Ne7 {[%clk 0:00:29]} 28. h6 {[%clk 0:01:19]}  Bh8 {[%clk 0:00:29]} 29. g6 {[%clk 0:01:19]}  Nf5 {[%clk 0:00:05]} 30. g7 {[%clk 0:01:11]}  Nxg7 {[%clk 0:00:03]} 31. Bb4 {[%clk 0:01:01]} 1-0


[Site "https://www.chess.com"]

[Event "Titled Tuesday Blitz March 15 Early 2022"]
[White "Jaferian, Koosha"]
[Black "Koellner, Ruben Gideon"]
[WhiteFideId "12507440"]
[BlackFideId "12993093"]
[WhiteElo "2030"]
[BlackElo "2468"]
[Result "0-1"]
[Round "09"]
[TimeControl "180+1"]
[Date "2022.03.15"]
[WhiteClock "0:00:01"]
[BlackClock "0:00:06"]

1. Nf3 {[%clk 0:03:00]}  Nf6 {[%clk 0:02:48]} 2. b3 {[%clk 0:02:59]}  d5 {[%clk 0:02:46]} 3. Bb2 {[%clk 0:02:59]}  Nbd7 {[%clk 0:02:47]} 4. e3 {[%clk 0:02:59]}  c6 {[%clk 0:02:47]} 5. d4 {[%clk 0:02:58]}  e6 {[%clk 0:02:46]} 6. c4 {[%clk 0:02:58]}  Bd6 {[%clk 0:02:47]} 7. Bd3 {[%clk 0:02:58]}  Ne4 {[%clk 0:02:47]} 8. Nbd2 {[%clk 0:02:37]}  f5 {[%clk 0:02:46]} 9. O-O {[%clk 0:02:28]}  Qf6 {[%clk 0:02:46]} 10. a3 {[%clk 0:02:25]}  g5 {[%clk 0:02:42]} 11. b4 {[%clk 0:02:11]}  g4 {[%clk 0:02:34]} 12. Bxe4 {[%clk 0:02:02]}  fxe4 {[%clk 0:02:11]} 13. Ne5 {[%clk 0:02:00]}  Nxe5 {[%clk 0:02:05]} 14. dxe5 {[%clk 0:01:59]}  Bxe5 {[%clk 0:02:06]} 15. Bxe5 {[%clk 0:01:56]}  Qxe5 {[%clk 0:02:07]} 16. Qxg4 {[%clk 0:01:55]}  Bd7 {[%clk 0:02:07]} 17. Qg3 {[%clk 0:01:42]}  Qxg3 {[%clk 0:02:04]} 18. hxg3 {[%clk 0:01:43]}  h5 {[%clk 0:02:04]} 19. Rfd1 {[%clk 0:01:25]}  Ke7 {[%clk 0:02:03]} 20. Nb3 {[%clk 0:01:23]}  b6 {[%clk 0:01:49]} 21. Rac1 {[%clk 0:01:22]}  a6 {[%clk 0:01:40]} 22. Nd4 {[%clk 0:01:18]}  e5 {[%clk 0:01:32]} 23. cxd5 {[%clk 0:01:00]}  exd4 {[%clk 0:01:28]} 24. dxc6 {[%clk 0:01:00]}  Bf5 {[%clk 0:01:21]} 25. Rxd4 {[%clk 0:01:00]}  Rhd8 {[%clk 0:01:19]} 26. Rdc4 {[%clk 0:00:40]}  Rac8 {[%clk 0:01:14]} 27. a4 {[%clk 0:00:37]}  Rd5 {[%clk 0:01:12]} 28. f3 {[%clk 0:00:31]}  Rd3 {[%clk 0:01:06]} 29. fxe4 {[%clk 0:00:20]}  Be6 {[%clk 0:01:02]} 30. Rd4 {[%clk 0:00:20]}  Rxe3 {[%clk 0:01:01]} 31. b5 {[%clk 0:00:21]}  axb5 {[%clk 0:00:58]} 32. axb5 {[%clk 0:00:22]}  Rxg3 {[%clk 0:00:54]} 33. Ra1 {[%clk 0:00:22]}  Rc7 {[%clk 0:00:51]} 34. Ra6 {[%clk 0:00:20]}  h4 {[%clk 0:00:43]} 35. Rxb6 {[%clk 0:00:21]}  h3 {[%clk 0:00:42]} 36. Rd2 {[%clk 0:00:21]}  Rc8 {[%clk 0:00:28]} 37. Rb7+ {[%clk 0:00:20]}  Kf6 {[%clk 0:00:28]} 38. Rf2+ {[%clk 0:00:14]}  Ke5 {[%clk 0:00:27]} 39. c7 {[%clk 0:00:06]}  Rcg8 {[%clk 0:00:23]} 40. Rb8 {[%clk 0:00:05]}  Rxg2+ {[%clk 0:00:22]} 41. Rxg2 {[%clk 0:00:06]}  Rxg2+ {[%clk 0:00:22]} 42. Kh1 {[%clk 0:00:01]}  Rc2 {[%clk 0:00:21]} 43. b6 {[%clk 0:00:02]}  Kf4 {[%clk 0:00:08]} 44. Rf8+ {[%clk 0:00:02]}  Kg3 {[%clk 0:00:07]} 45. Rg8+ {[%clk 0:00:02]}  Bg4 {[%clk 0:00:06]} 46. b7 {[%clk 0:00:01]}  Rc1# {[%clk 0:00:06]} 0-1


[Site "https://www.chess.com"]

[Event "Titled Tuesday Blitz March 15 Early 2022"]
[White "Johnson, Ben"]
[Black "Hernandez Jimenez, Alexander Andres"]
[WhiteFideId "2010917"]
[BlackFideId "3900452"]
[WhiteElo "2226"]
[BlackElo "2082"]
[Result "1-0"]
[Round "09"]
[TimeControl "180+1"]
[Date "2022.03.15"]
[WhiteClock "0:00:09"]
[BlackClock "0:00:02"]

1. Nf3 {[%clk 0:02:58]}  b5 {[%clk 0:02:57]} 2. e4 {[%clk 0:02:55]}  a6 {[%clk 0:02:57]} 3. d4 {[%clk 0:02:54]}  Bb7 {[%clk 0:02:57]} 4. Bd3 {[%clk 0:02:50]}  e6 {[%clk 0:02:58]} 5. O-O {[%clk 0:02:43]}  c5 {[%clk 0:02:58]} 6. c3 {[%clk 0:02:34]}  d6 {[%clk 0:02:56]} 7. Re1 {[%clk 0:02:29]}  Nd7 {[%clk 0:02:56]} 8. e5 {[%clk 0:02:16]}  d5 {[%clk 0:02:55]} 9. Bg5 {[%clk 0:02:13]}  Be7 {[%clk 0:02:52]} 10. Qd2 {[%clk 0:02:07]}  h6 {[%clk 0:02:50]} 11. Bxe7 {[%clk 0:02:07]}  Nxe7 {[%clk 0:02:50]} 12. Qf4 {[%clk 0:01:52]}  g5 {[%clk 0:02:33]} 13. Qg4 {[%clk 0:01:40]}  Qb6 {[%clk 0:02:30]} 14. Nbd2 {[%clk 0:01:34]}  O-O-O {[%clk 0:02:22]} 15. b3 {[%clk 0:01:23]}  Rdg8 {[%clk 0:02:16]} 16. Qh5 {[%clk 0:01:13]}  Ng6 {[%clk 0:02:14]} 17. g3 {[%clk 0:01:10]}  Qd8 {[%clk 0:01:51]} 18. a4 {[%clk 0:01:03]}  c4 {[%clk 0:01:48]} 19. bxc4 {[%clk 0:01:00]}  bxc4 {[%clk 0:01:47]} 20. Bxg6 {[%clk 0:00:55]}  fxg6 {[%clk 0:01:46]} 21. Qh3 {[%clk 0:00:51]}  Qe7 {[%clk 0:01:39]} 22. Reb1 {[%clk 0:00:38]}  h5 {[%clk 0:01:37]} 23. Ne1 {[%clk 0:00:36]}  g4 {[%clk 0:01:35]} 24. Qf1 {[%clk 0:00:28]}  Nb8 {[%clk 0:01:18]} 25. Nc2 {[%clk 0:00:26]}  h4 {[%clk 0:01:17]} 26. Rxb7 {[%clk 0:00:23]}  Qxb7 {[%clk 0:01:15]} 27. Rb1 {[%clk 0:00:23]}  Qc7 {[%clk 0:01:11]} 28. Nb4 {[%clk 0:00:23]}  hxg3 {[%clk 0:01:08]} 29. fxg3 {[%clk 0:00:21]}  a5 {[%clk 0:01:08]} 30. Nc2 {[%clk 0:00:18]}  Rf8 {[%clk 0:01:07]} 31. Qg2 {[%clk 0:00:16]}  Rf7 {[%clk 0:00:56]} 32. Ne3 {[%clk 0:00:16]}  Rhf8 {[%clk 0:00:54]} 33. Nxg4 {[%clk 0:00:16]}  Qc6 {[%clk 0:00:49]} 34. Nf6 {[%clk 0:00:16]}  Qxa4 {[%clk 0:00:49]} 35. Nf3 {[%clk 0:00:14]}  Rb7 {[%clk 0:00:46]} 36. Rxb7 {[%clk 0:00:13]}  Kxb7 {[%clk 0:00:46]} 37. h4 {[%clk 0:00:13]}  Qb3 {[%clk 0:00:43]} 38. Ng5 {[%clk 0:00:11]}  a4 {[%clk 0:00:30]} 39. Nxe6 {[%clk 0:00:10]}  Rc8 {[%clk 0:00:19]} 40. Nc5+ {[%clk 0:00:09]}  Rxc5 {[%clk 0:00:18]} 41. dxc5 {[%clk 0:00:10]}  Qd1+ {[%clk 0:00:16]} 42. Kh2 {[%clk 0:00:09]}  a3 {[%clk 0:00:16]} 43. Nxd5 {[%clk 0:00:09]}  Ka7 {[%clk 0:00:04]} 44. Nb4 {[%clk 0:00:09]}  Qb3 {[%clk 0:00:02]} 45. e6 {[%clk 0:00:09]} 1-0


[Site "https://www.chess.com"]